[Event "Titled Tuesday Blitz April 19 Early 2022"]
[White "Mayaud, Raphael"]
[Black "Hernandez Bermudez, Ulises Eduardo"]
[WhiteFideId "627151"]
[BlackFideId "3902510"]
[WhiteElo "2191"]
[BlackElo "2056"]
[Result "1-0"]
[Round "06"]
[TimeControl "180+1"]
[Date "2022.04.19"]
[WhiteClock "0:00:32"]
[BlackClock "0:00:52"]

1. d4 {[%clk 0:03:00]}  Nf6 {[%clk 0:02:59]} 2. Bg5 {[%clk 0:02:59]}  d5 {[%clk 0:02:56]} 3. Bxf6 {[%clk 0:02:57]}  exf6 {[%clk 0:02:57]} 4. e3 {[%clk 0:02:54]}  Bd6 {[%clk 0:02:57]} 5. g3 {[%clk 0:02:55]}  O-O {[%clk 0:02:55]} 6. Bg2 {[%clk 0:02:55]}  c6 {[%clk 0:02:55]} 7. Ne2 {[%clk 0:02:55]}  Re8 {[%clk 0:02:55]} 8. O-O {[%clk 0:02:55]}  Nd7 {[%clk 0:02:55]} 9. Nd2 {[%clk 0:02:56]}  b6 {[%clk 0:02:52]} 10. c4 {[%clk 0:02:54]}  Bb7 {[%clk 0:02:51]} 11. cxd5 {[%clk 0:02:53]}  cxd5 {[%clk 0:02:52]} 12. Nc3 {[%clk 0:02:53]}  Nf8 {[%clk 0:02:47]} 13. Qb3 {[%clk 0:02:50]}  Rc8 {[%clk 0:02:38]} 14. Bxd5 {[%clk 0:02:47]}  Bxd5 {[%clk 0:02:37]} 15. Qxd5 {[%clk 0:02:44]}  Bb4 {[%clk 0:02:35]} 16. Qxd8 {[%clk 0:02:42]}  Rexd8 {[%clk 0:02:36]} 17. Rfc1 {[%clk 0:02:41]}  Bxc3 {[%clk 0:02:35]} 18. Rxc3 {[%clk 0:02:40]}  Rxc3 {[%clk 0:02:34]} 19. bxc3 {[%clk 0:02:41]}  Rc8 {[%clk 0:02:35]} 20. c4 {[%clk 0:02:40]}  Nd7 {[%clk 0:02:33]} 21. Kf1 {[%clk 0:02:39]}  Nb8 {[%clk 0:02:23]} 22. Ke2 {[%clk 0:02:30]}  Nc6 {[%clk 0:02:23]} 23. a4 {[%clk 0:02:25]}  Na5 {[%clk 0:02:23]} 24. Kd3 {[%clk 0:02:22]}  Kf8 {[%clk 0:02:23]} 25. Rc1 {[%clk 0:02:17]}  Ke7 {[%clk 0:02:22]} 26. Rc3 {[%clk 0:02:09]}  Kd6 {[%clk 0:02:15]} 27. Nb3 {[%clk 0:02:07]}  Nb7 {[%clk 0:02:13]} 28. e4 {[%clk 0:02:04]}  Kc6 {[%clk 0:02:09]} 29. c5 {[%clk 0:01:55]}  Kd7 {[%clk 0:02:02]} 30. cxb6 {[%clk 0:01:53]}  axb6 {[%clk 0:02:03]} 31. Rxc8 {[%clk 0:01:51]}  Kxc8 {[%clk 0:02:04]} 32. f3 {[%clk 0:01:46]}  Kc7 {[%clk 0:02:03]} 33. Kc4 {[%clk 0:01:46]}  Kc6 {[%clk 0:02:03]} 34. d5+ {[%clk 0:01:42]}  Kc7 {[%clk 0:02:03]} 35. Nd4 {[%clk 0:01:38]}  Nd6+ {[%clk 0:02:03]} 36. Kb4 {[%clk 0:01:36]}  Nb7 {[%clk 0:01:55]} 37. Nb5+ {[%clk 0:01:28]}  Kd7 {[%clk 0:01:53]} 38. h4 {[%clk 0:01:28]}  Nc5 {[%clk 0:01:52]} 39. a5 {[%clk 0:01:20]}  Na6+ {[%clk 0:01:52]} 40. Ka4 {[%clk 0:01:17]}  bxa5 {[%clk 0:01:52]} 41. Kxa5 {[%clk 0:01:17]}  Nc5 {[%clk 0:01:53]} 42. Nd4 {[%clk 0:01:13]}  g6 {[%clk 0:01:40]} 43. Kb5 {[%clk 0:01:13]}  Nd3 {[%clk 0:01:39]} 44. Kc4 {[%clk 0:01:11]}  Ne5+ {[%clk 0:01:39]} 45. Kc3 {[%clk 0:01:11]}  h5 {[%clk 0:01:36]} 46. Kd2 {[%clk 0:01:10]}  Kd6 {[%clk 0:01:34]} 47. Ke3 {[%clk 0:01:10]}  Nc4+ {[%clk 0:01:33]} 48. Kf2 {[%clk 0:01:05]}  Ne5 {[%clk 0:01:33]} 49. Nb5+ {[%clk 0:01:02]}  Kc5 {[%clk 0:01:30]} 50. Nc7 {[%clk 0:01:02]}  Kd6 {[%clk 0:01:26]} 51. Nb5+ {[%clk 0:00:57]}  Kc5 {[%clk 0:01:26]} 52. Nc3 {[%clk 0:00:57]}  Nd3+ {[%clk 0:01:24]} 53. Ke3 {[%clk 0:00:56]}  Ne5 {[%clk 0:01:24]} 54. Ne2 {[%clk 0:00:54]}  Nc4+ {[%clk 0:01:23]} 55. Kf2 {[%clk 0:00:54]}  Ne5 {[%clk 0:01:23]} 56. Nf4 {[%clk 0:00:51]}  Kd6 {[%clk 0:01:21]} 57. Ke2 {[%clk 0:00:51]}  Nc4 {[%clk 0:01:15]} 58. Nd3 {[%clk 0:00:50]}  f5 {[%clk 0:01:08]} 59. exf5 {[%clk 0:00:46]}  gxf5 {[%clk 0:01:01]} 60. Nf4 {[%clk 0:00:46]}  Ne5 {[%clk 0:00:59]} 61. Nxh5 {[%clk 0:00:43]}  Kxd5 {[%clk 0:01:00]} 62. Nf4+ {[%clk 0:00:43]}  Kd6 {[%clk 0:00:58]} 63. Kf2 {[%clk 0:00:42]}  Ke7 {[%clk 0:00:59]} 64. Nd5+ {[%clk 0:00:41]}  Kf8 {[%clk 0:00:57]} 65. Ne3 {[%clk 0:00:37]}  f4 {[%clk 0:00:56]} 66. gxf4 {[%clk 0:00:37]}  Nd3+ {[%clk 0:00:56]} 67. Kg3 {[%clk 0:00:37]}  Kg7 {[%clk 0:00:56]} 68. Kg4 {[%clk 0:00:37]}  Nc5 {[%clk 0:00:55]} 69. f5 {[%clk 0:00:36]}  f6 {[%clk 0:00:54]} 70. Nd5 {[%clk 0:00:35]}  Nd3 {[%clk 0:00:54]} 71. Nf4 {[%clk 0:00:35]}  Nf2+ {[%clk 0:00:52]} 72. Kg3 {[%clk 0:00:34]}  Nd3 {[%clk 0:00:52]} 73. Nxd3 {[%clk 0:00:32]} 1-0


[Site "https://www.chess.com"]

[Event "Titled Tuesday Blitz April 19 Early 2022"]
[White "Melikhov, Evgeny V."]
[Black "Quirke, Jeffrey"]
[WhiteFideId "4122046"]
[BlackFideId "2013029"]
[WhiteElo "1931"]
[BlackElo "2184"]
[Result "1-0"]
[Round "06"]
[TimeControl "180+1"]
[Date "2022.04.19"]
[WhiteClock "0:00:15"]
[BlackClock "0:00:01"]

1. d4 {[%clk 0:03:00]}  d5 {[%clk 0:02:59]} 2. c4 {[%clk 0:02:57]}  e6 {[%clk 0:03:00]} 3. Nc3 {[%clk 0:02:57]}  Nf6 {[%clk 0:03:00]} 4. cxd5 {[%clk 0:02:57]}  exd5 {[%clk 0:03:01]} 5. Bg5 {[%clk 0:02:57]}  c6 {[%clk 0:03:01]} 6. Qc2 {[%clk 0:02:57]}  Be6 {[%clk 0:03:01]} 7. e3 {[%clk 0:02:55]}  Nbd7 {[%clk 0:03:02]} 8. Bd3 {[%clk 0:02:55]}  h6 {[%clk 0:03:01]} 9. Bh4 {[%clk 0:02:54]}  g5 {[%clk 0:03:01]} 10. Bg3 {[%clk 0:02:54]}  Nh5 {[%clk 0:03:02]} 11. Nge2 {[%clk 0:02:41]}  Nxg3 {[%clk 0:03:02]} 12. Nxg3 {[%clk 0:02:40]}  h5 {[%clk 0:03:00]} 13. f4 {[%clk 0:02:22]}  gxf4 {[%clk 0:02:43]} 14. exf4 {[%clk 0:02:20]}  Nf6 {[%clk 0:02:00]} 15. f5 {[%clk 0:02:15]}  Bd7 {[%clk 0:02:00]} 16. O-O-O {[%clk 0:02:12]}  h4 {[%clk 0:01:44]} 17. Rhe1+ {[%clk 0:02:05]}  Be7 {[%clk 0:01:44]} 18. Nge2 {[%clk 0:02:02]}  Qc7 {[%clk 0:01:38]} 19. h3 {[%clk 0:01:59]}  O-O-O {[%clk 0:01:34]} 20. Kb1 {[%clk 0:01:59]}  Bd6 {[%clk 0:01:32]} 21. Nc1 {[%clk 0:01:58]}  Rhg8 {[%clk 0:01:24]} 22. Nb3 {[%clk 0:01:57]}  Kb8 {[%clk 0:01:16]} 23. Nc5 {[%clk 0:01:49]}  Bc8 {[%clk 0:01:15]} 24. Rc1 {[%clk 0:01:33]}  Rg3 {[%clk 0:01:11]} 25. N3a4 {[%clk 0:01:31]}  Rdg8 {[%clk 0:01:09]} 26. Re2 {[%clk 0:01:28]}  Nh5 {[%clk 0:00:42]} 27. Rf2 {[%clk 0:01:09]}  Nf4 {[%clk 0:00:35]} 28. Bf1 {[%clk 0:01:03]}  R3g5 {[%clk 0:00:34]} 29. Ka1 {[%clk 0:00:56]}  Bxf5 {[%clk 0:00:30]} 30. Qb3 {[%clk 0:00:56]}  Ka8 {[%clk 0:00:27]} 31. a3 {[%clk 0:00:36]}  Bc8 {[%clk 0:00:27]} 32. Rc3 {[%clk 0:00:29]}  Nxg2 {[%clk 0:00:25]} 33. Rcf3 {[%clk 0:00:27]}  Nf4 {[%clk 0:00:22]} 34. Ba6 {[%clk 0:00:22]}  b6 {[%clk 0:00:20]} 35. Nd3 {[%clk 0:00:20]}  Bxa6 {[%clk 0:00:17]} 36. Nxf4 {[%clk 0:00:20]}  Bxf4 {[%clk 0:00:16]} 37. Rxf4 {[%clk 0:00:20]}  Rg3 {[%clk 0:00:15]} 38. Qb4 {[%clk 0:00:19]}  Rg1+ {[%clk 0:00:13]} 39. Ka2 {[%clk 0:00:19]}  Bc4+ {[%clk 0:00:10]} 40. b3 {[%clk 0:00:19]}  Qxf4 {[%clk 0:00:06]} 41. Rxf4 {[%clk 0:00:17]}  R8g2+ {[%clk 0:00:06]} 42. Nb2 {[%clk 0:00:17]}  Re1 {[%clk 0:00:02]} 43. bxc4 {[%clk 0:00:15]}  Ree2 {[%clk 0:00:02]} 44. Rxf7 {[%clk 0:00:15]}  Rxb2+ {[%clk 0:00:01]} 45. Qxb2 {[%clk 0:00:15]} 1-0


[Site "https://www.chess.com"]

[Event "Titled Tuesday Blitz April 19 Early 2022"]
[White "Mikhailovsky, Vladimir"]
[Black "Krsnik Cohar, Ivan Vihor"]
[WhiteFideId "34105414"]
[BlackFideId "14520044"]
[WhiteElo "2349"]
[BlackElo "2414"]
[Result "1-0"]
[Round "06"]
[TimeControl "180+1"]
[Date "2022.04.19"]
[WhiteClock "0:00:36"]
[BlackClock "0:00:02"]

1. e4 {[%clk 0:03:00]}  d5 {[%clk 0:02:54]} 2. exd5 {[%clk 0:03:00]}  Qxd5 {[%clk 0:02:54]} 3. Nc3 {[%clk 0:03:01]}  Qe5+ {[%clk 0:02:55]} 4. Be2 {[%clk 0:03:00]}  c6 {[%clk 0:02:55]} 5. d4 {[%clk 0:02:59]}  Qc7 {[%clk 0:02:56]} 6. Bf3 {[%clk 0:02:47]}  Bf5 {[%clk 0:02:49]} 7. Nge2 {[%clk 0:02:46]}  e6 {[%clk 0:02:48]} 8. Ne4 {[%clk 0:02:40]}  Bxe4 {[%clk 0:02:42]} 9. Bxe4 {[%clk 0:02:40]}  Nd7 {[%clk 0:02:42]} 10. O-O {[%clk 0:02:39]}  Ngf6 {[%clk 0:02:40]} 11. Bf3 {[%clk 0:02:40]}  Bd6 {[%clk 0:02:41]} 12. h3 {[%clk 0:02:24]}  h6 {[%clk 0:02:38]} 13. c4 {[%clk 0:02:21]}  O-O-O {[%clk 0:02:34]} 14. Qa4 {[%clk 0:02:19]}  a6 {[%clk 0:02:31]} 15. b4 {[%clk 0:02:17]}  g5 {[%clk 0:02:23]} 16. b5 {[%clk 0:02:16]}  Nb6 {[%clk 0:02:09]} 17. Qb3 {[%clk 0:02:09]}  axb5 {[%clk 0:01:57]} 18. cxb5 {[%clk 0:02:10]}  Nbd5 {[%clk 0:01:48]} 19. bxc6 {[%clk 0:02:03]}  bxc6 {[%clk 0:01:49]} 20. Ba3 {[%clk 0:01:54]}  Bxa3 {[%clk 0:01:38]} 21. Qxa3 {[%clk 0:01:53]}  h5 {[%clk 0:01:38]} 22. Rab1 {[%clk 0:01:43]}  Kd7 {[%clk 0:01:33]} 23. Rfc1 {[%clk 0:01:24]}  Ra8 {[%clk 0:01:23]} 24. Qc5 {[%clk 0:01:15]}  g4 {[%clk 0:00:57]} 25. Bxd5 {[%clk 0:01:15]}  Nxd5 {[%clk 0:00:53]} 26. h4 {[%clk 0:01:13]}  Rxa2 {[%clk 0:00:47]} 27. Nc3 {[%clk 0:01:04]}  Ra5 {[%clk 0:00:20]} 28. Qc4 {[%clk 0:00:53]}  g3 {[%clk 0:00:20]} 29. fxg3 {[%clk 0:00:47]}  Ne7 {[%clk 0:00:15]} 30. Ne4 {[%clk 0:00:44]}  Nd5 {[%clk 0:00:11]} 31. Qf1 {[%clk 0:00:39]}  f5 {[%clk 0:00:10]} 32. Nc5+ {[%clk 0:00:38]}  Ke7 {[%clk 0:00:10]} 33. Rb7 {[%clk 0:00:37]}  Rxc5 {[%clk 0:00:02]} 34. Rxc7+ {[%clk 0:00:36]}  Nxc7 {[%clk 0:00:03]} 35. dxc5 {[%clk 0:00:36]}  Nd5 {[%clk 0:00:02]} 36. Qe1 {[%clk 0:00:35]}  Rg8 {[%clk 0:00:02]} 37. Qe5 {[%clk 0:00:36]}  Rg4 {[%clk 0:00:02]} 38. Re1 {[%clk 0:00:36]} 1-0


[Site "https://www.chess.com"]

[Event "Titled Tuesday Blitz April 19 Early 2022"]
[White "Miszler, Levente"]
[Black "Mokshanov, Alexey"]
[WhiteFideId "763276"]
[BlackFideId "24121657"]
[WhiteElo "1966"]
[BlackElo "2141"]
[Result "0-1"]
[Round "06"]
[TimeControl "180+1"]
[Date "2022.04.19"]
[WhiteClock "0:00:09"]
[BlackClock "0:00:12"]

1. Nf3 {[%clk 0:03:00]}  d5 {[%clk 0:02:59]} 2. e3 {[%clk 0:02:55]}  Bg4 {[%clk 0:02:59]} 3. h3 {[%clk 0:02:53]}  Bh5 {[%clk 0:02:58]} 4. b3 {[%clk 0:02:50]}  c6 {[%clk 0:02:57]} 5. Bb2 {[%clk 0:02:50]}  Nd7 {[%clk 0:02:57]} 6. c4 {[%clk 0:02:39]}  e6 {[%clk 0:02:56]} 7. d3 {[%clk 0:02:39]}  Ngf6 {[%clk 0:02:51]} 8. Be2 {[%clk 0:02:35]}  Bd6 {[%clk 0:02:50]} 9. O-O {[%clk 0:02:29]}  Qe7 {[%clk 0:02:50]} 10. Nbd2 {[%clk 0:02:24]}  Ba3 {[%clk 0:02:39]} 11. Qc2 {[%clk 0:02:23]}  Bxb2 {[%clk 0:02:39]} 12. Qxb2 {[%clk 0:02:24]}  a5 {[%clk 0:02:38]} 13. a3 {[%clk 0:02:23]}  O-O {[%clk 0:02:36]} 14. b4 {[%clk 0:02:22]}  e5 {[%clk 0:02:29]} 15. Rfe1 {[%clk 0:02:08]}  e4 {[%clk 0:02:11]} 16. dxe4 {[%clk 0:02:05]}  dxe4 {[%clk 0:02:12]} 17. Nd4 {[%clk 0:02:02]}  Bxe2 {[%clk 0:02:12]} 18. Nxe2 {[%clk 0:02:01]}  Ne5 {[%clk 0:02:11]} 19. Qc2 {[%clk 0:01:43]}  Nd3 {[%clk 0:02:03]} 20. Red1 {[%clk 0:01:42]}  axb4 {[%clk 0:02:03]} 21. Nxe4 {[%clk 0:01:38]}  Nxe4 {[%clk 0:01:46]} 22. Qxd3 {[%clk 0:01:19]}  bxa3 {[%clk 0:01:30]} 23. Nd4 {[%clk 0:01:17]}  g6 {[%clk 0:01:15]} 24. Qb3 {[%clk 0:01:09]}  Rfd8 {[%clk 0:01:10]} 25. Rdc1 {[%clk 0:01:00]}  Ra6 {[%clk 0:00:43]} 26. c5 {[%clk 0:00:43]}  Ra5 {[%clk 0:00:20]} 27. Rxa3 {[%clk 0:00:36]}  Rxc5 {[%clk 0:00:20]} 28. Rb1 {[%clk 0:00:31]}  b5 {[%clk 0:00:20]} 29. Ra6 {[%clk 0:00:30]}  Nd2 {[%clk 0:00:19]} 30. Qb4 {[%clk 0:00:15]}  Nxb1 {[%clk 0:00:16]} 31. Qxb1 {[%clk 0:00:16]}  Qc7 {[%clk 0:00:12]} 32. Qa2 {[%clk 0:00:09]}  Rc1# {[%clk 0:00:12]} 0-1


[Site "https://www.chess.com"]

[Event "Titled Tuesday Blitz April 19 Early 2022"]
[White "Mortazavi, Ali"]
[Black "Muradov, Soltan"]
[WhiteFideId "401323"]
[BlackFideId "14002108"]
[WhiteElo "2339"]
[BlackElo "1854"]
[Result "1-0"]
[Round "06"]
[TimeControl "180+1"]
[Date "2022.04.19"]
[WhiteClock "0:00:13"]
[BlackClock "0:00:04"]

1. Nf3 {[%clk 0:03:00]}  Nf6 {[%clk 0:02:43]} 2. g3 {[%clk 0:02:59]}  b6 {[%clk 0:02:42]} 3. Bg2 {[%clk 0:02:59]}  Bb7 {[%clk 0:02:43]} 4. O-O {[%clk 0:02:59]}  c5 {[%clk 0:02:43]} 5. d3 {[%clk 0:03:00]}  d6 {[%clk 0:02:38]} 6. e4 {[%clk 0:03:00]}  g6 {[%clk 0:02:39]} 7. a4 {[%clk 0:03:00]}  Bg7 {[%clk 0:02:34]} 8. a5 {[%clk 0:02:59]}  O-O {[%clk 0:02:32]} 9. Nc3 {[%clk 0:02:56]}  bxa5 {[%clk 0:02:24]} 10. e5 {[%clk 0:02:51]}  dxe5 {[%clk 0:02:21]} 11. Nxe5 {[%clk 0:02:51]}  Bxg2 {[%clk 0:02:21]} 12. Kxg2 {[%clk 0:02:51]}  Nbd7 {[%clk 0:02:22]} 13. Nc6 {[%clk 0:02:43]}  Qc7 {[%clk 0:02:19]} 14. Nxe7+ {[%clk 0:02:23]}  Kh8 {[%clk 0:02:19]} 15. Bf4 {[%clk 0:02:23]}  Qb7+ {[%clk 0:02:15]} 16. Qf3 {[%clk 0:02:22]}  Qxb2 {[%clk 0:02:15]} 17. Ncd5 {[%clk 0:01:58]}  Nxd5 {[%clk 0:02:07]} 18. Qxd5 {[%clk 0:01:55]}  Nb6 {[%clk 0:01:37]} 19. Qxc5 {[%clk 0:01:45]}  a4 {[%clk 0:01:29]} 20. Rfb1 {[%clk 0:00:49]}  Qd4 {[%clk 0:01:29]} 21. Qa5 {[%clk 0:00:40]}  Qd7 {[%clk 0:00:49]} 22. Qc5 {[%clk 0:00:16]}  Rfe8 {[%clk 0:00:43]} 23. Bd6 {[%clk 0:00:16]}  Bf6 {[%clk 0:00:32]} 24. Re1 {[%clk 0:00:13]}  h5 {[%clk 0:00:17]} 25. Be5 {[%clk 0:00:13]}  Bxe5 {[%clk 0:00:14]} 26. Qxe5+ {[%clk 0:00:13]}  Kh7 {[%clk 0:00:14]} 27. Qf6 {[%clk 0:00:13]}  Rf8 {[%clk 0:00:09]} 28. Re5 {[%clk 0:00:13]}  Qb7+ {[%clk 0:00:07]} 29. Kg1 {[%clk 0:00:13]}  Rae8 {[%clk 0:00:06]} 30. Rae1 {[%clk 0:00:12]}  Nd7 {[%clk 0:00:07]} 31. Rxh5+ {[%clk 0:00:10]}  gxh5 {[%clk 0:00:06]} 32. Qf5+ {[%clk 0:00:11]}  Kg7 {[%clk 0:00:05]} 33. Qg5+ {[%clk 0:00:12]}  Kh7 {[%clk 0:00:06]} 34. Qxh5+ {[%clk 0:00:10]}  Kg7 {[%clk 0:00:05]} 35. Qg5+ {[%clk 0:00:11]}  Kh7 {[%clk 0:00:06]} 36. Re4 {[%clk 0:00:12]}  Qxe4 {[%clk 0:00:03]} 37. dxe4 {[%clk 0:00:12]}  f6 {[%clk 0:00:03]} 38. Qh5+ {[%clk 0:00:12]}  Kg7 {[%clk 0:00:04]} 39. Qg6+ {[%clk 0:00:12]}  Kh8 {[%clk 0:00:04]} 40. Qh6# {[%clk 0:00:13]} 1-0


[Site "https://www.chess.com"]

[Event "Titled Tuesday Blitz April 19 Early 2022"]
[White "Moskalenko, Alexander"]
[Black "Brodowski, Piotr"]
[WhiteFideId "4155351"]
[BlackFideId "1124480"]
[WhiteElo "2434"]
[BlackElo "2422"]
[Result "1-0"]
[Round "06"]
[TimeControl "180+1"]
[Date "2022.04.19"]
[WhiteClock "0:00:12"]
[BlackClock "0:00:02"]

1. Nf3 {[%clk 0:02:57]}  c5 {[%clk 0:02:57]} 2. e4 {[%clk 0:02:52]}  Nc6 {[%clk 0:02:51]} 3. d4 {[%clk 0:02:51]}  cxd4 {[%clk 0:02:51]} 4. Nxd4 {[%clk 0:02:52]}  g6 {[%clk 0:02:51]} 5. c4 {[%clk 0:02:51]}  Bg7 {[%clk 0:02:51]} 6. Be3 {[%clk 0:02:47]}  d6 {[%clk 0:02:51]} 7. Nc3 {[%clk 0:02:46]}  Nf6 {[%clk 0:02:51]} 8. Be2 {[%clk 0:02:42]}  O-O {[%clk 0:02:51]} 9. O-O {[%clk 0:02:36]}  Bd7 {[%clk 0:02:51]} 10. Nc2 {[%clk 0:02:30]}  Rc8 {[%clk 0:02:49]} 11. Qd2 {[%clk 0:02:28]}  Ne5 {[%clk 0:02:38]} 12. b3 {[%clk 0:02:25]}  a6 {[%clk 0:01:36]} 13. a4 {[%clk 0:02:24]}  Bc6 {[%clk 0:01:13]} 14. f3 {[%clk 0:02:23]}  h5 {[%clk 0:01:01]} 15. Rfd1 {[%clk 0:02:20]}  Nfd7 {[%clk 0:01:02]} 16. b4 {[%clk 0:02:17]}  b6 {[%clk 0:01:00]} 17. Nd5 {[%clk 0:01:53]}  Bb7 {[%clk 0:00:58]} 18. Na3 {[%clk 0:01:53]}  a5 {[%clk 0:00:49]} 19. bxa5 {[%clk 0:01:51]}  bxa5 {[%clk 0:00:50]} 20. Rab1 {[%clk 0:01:51]}  Bxd5 {[%clk 0:00:42]} 21. cxd5 {[%clk 0:01:50]}  Nc5 {[%clk 0:00:43]} 22. Bb5 {[%clk 0:01:49]}  h4 {[%clk 0:00:40]} 23. h3 {[%clk 0:01:48]}  f5 {[%clk 0:00:40]} 24. f4 {[%clk 0:01:44]}  Nxe4 {[%clk 0:00:39]} 25. Qe1 {[%clk 0:01:45]}  Nd7 {[%clk 0:00:38]} 26. Qxh4 {[%clk 0:01:43]}  Rc3 {[%clk 0:00:36]} 27. Nc4 {[%clk 0:01:41]}  Ndf6 {[%clk 0:00:24]} 28. Bd4 {[%clk 0:01:40]}  Rg3 {[%clk 0:00:22]} 29. Nd2 {[%clk 0:01:24]}  Nh5 {[%clk 0:00:20]} 30. Nxe4 {[%clk 0:01:19]}  fxe4 {[%clk 0:00:19]} 31. f5 {[%clk 0:00:36]}  Rxf5 {[%clk 0:00:15]} 32. Qxe4 {[%clk 0:00:29]}  Bxd4+ {[%clk 0:00:14]} 33. Rxd4 {[%clk 0:00:29]}  Re5 {[%clk 0:00:13]} 34. Qc2 {[%clk 0:00:22]}  Qb6 {[%clk 0:00:11]} 35. Rd1 {[%clk 0:00:21]}  Nf4 {[%clk 0:00:09]} 36. Bf1 {[%clk 0:00:14]}  Rxg2+ {[%clk 0:00:05]} 37. Bxg2 {[%clk 0:00:11]}  Re2 {[%clk 0:00:03]} 38. Qc8+ {[%clk 0:00:12]}  Kg7 {[%clk 0:00:03]} 39. Bf3 {[%clk 0:00:13]}  Re3 {[%clk 0:00:02]} 40. Qg4 {[%clk 0:00:13]}  Ne2+ {[%clk 0:00:02]} 41. Bxe2 {[%clk 0:00:13]}  Rxe2 {[%clk 0:00:02]} 42. Qxe2 {[%clk 0:00:12]} 1-0


[Site "https://www.chess.com"]

[Event "Titled Tuesday Blitz April 19 Early 2022"]
[White "Moskvin, Anatoly"]
[Black "Bachmann, Axel"]
[WhiteFideId "24199990"]
[BlackFideId "3700488"]
[WhiteElo "2079"]
[BlackElo "2587"]
[Result "0-1"]
[Round "06"]
[TimeControl "180+1"]
[Date "2022.04.19"]
[WhiteClock "0:00:04"]
[BlackClock "0:00:11"]

1. e4 {[%clk 0:03:00]}  c5 {[%clk 0:02:55]} 2. Nf3 {[%clk 0:03:01]}  d6 {[%clk 0:02:50]} 3. d4 {[%clk 0:02:59]}  cxd4 {[%clk 0:02:46]} 4. Nxd4 {[%clk 0:03:00]}  Nf6 {[%clk 0:02:47]} 5. f3 {[%clk 0:02:59]}  e5 {[%clk 0:02:43]} 6. Bb5+ {[%clk 0:02:58]}  Bd7 {[%clk 0:02:29]} 7. Bxd7+ {[%clk 0:02:58]}  Qxd7 {[%clk 0:02:26]} 8. Nf5 {[%clk 0:02:58]}  d5 {[%clk 0:02:21]} 9. Bg5 {[%clk 0:02:58]}  dxe4 {[%clk 0:02:08]} 10. Bxf6 {[%clk 0:02:58]}  Qxd1+ {[%clk 0:02:04]} 11. Kxd1 {[%clk 0:02:59]}  gxf6 {[%clk 0:02:04]} 12. fxe4 {[%clk 0:03:00]}  Nc6 {[%clk 0:01:56]} 13. c3 {[%clk 0:02:59]}  O-O-O+ {[%clk 0:01:43]} 14. Ke2 {[%clk 0:02:59]}  Rg8 {[%clk 0:01:43]} 15. g3 {[%clk 0:02:55]}  h5 {[%clk 0:01:22]} 16. Nd2 {[%clk 0:02:50]}  Rg4 {[%clk 0:01:16]} 17. Rad1 {[%clk 0:02:29]}  Ne7 {[%clk 0:01:06]} 18. Rhf1 {[%clk 0:01:43]}  Nxf5 {[%clk 0:00:56]} 19. Rxf5 {[%clk 0:01:44]}  h4 {[%clk 0:00:56]} 20. Rxf6 {[%clk 0:01:12]}  hxg3 {[%clk 0:00:54]} 21. hxg3 {[%clk 0:01:13]}  Rxg3 {[%clk 0:00:54]} 22. Rdf1 {[%clk 0:00:55]}  Bc5 {[%clk 0:00:29]} 23. Nb3 {[%clk 0:00:12]}  Rg2+ {[%clk 0:00:29]} 24. Ke1 {[%clk 0:00:07]}  Bb6 {[%clk 0:00:30]} 25. c4 {[%clk 0:00:07]}  Rxb2 {[%clk 0:00:20]} 26. c5 {[%clk 0:00:08]}  Bc7 {[%clk 0:00:17]} 27. R1f2 {[%clk 0:00:07]}  Rb1+ {[%clk 0:00:14]} 28. Ke2 {[%clk 0:00:07]}  a5 {[%clk 0:00:14]} 29. Rxf7 {[%clk 0:00:02]}  a4 {[%clk 0:00:15]} 30. Nd2 {[%clk 0:00:03]}  Rb2 {[%clk 0:00:15]} 31. Ke3 {[%clk 0:00:03]}  Rxa2 {[%clk 0:00:14]} 32. Nc4 {[%clk 0:00:04]}  Rxf2 {[%clk 0:00:12]} 33. Rxf2 {[%clk 0:00:04]}  Rd4 {[%clk 0:00:12]} 34. Rc2 {[%clk 0:00:04]}  Kd7 {[%clk 0:00:12]} 35. Nb6+ {[%clk 0:00:04]}  Bxb6 {[%clk 0:00:12]} 36. cxb6 {[%clk 0:00:05]}  Kd6 {[%clk 0:00:10]} 37. Rc7 {[%clk 0:00:06]}  Rb4 {[%clk 0:00:10]} 38. Rxb7 {[%clk 0:00:06]}  Kc6 {[%clk 0:00:11]} 39. Re7 {[%clk 0:00:05]}  Kxb6 {[%clk 0:00:11]} 40. Re6+ {[%clk 0:00:03]}  Kb5 {[%clk 0:00:11]} 41. Re7 {[%clk 0:00:04]}  a3 {[%clk 0:00:11]} 42. Rxe5+ {[%clk 0:00:05]}  Kc4 {[%clk 0:00:11]} 43. Ra5 {[%clk 0:00:05]}  Kb3 {[%clk 0:00:11]} 44. e5 {[%clk 0:00:06]}  Ra4 {[%clk 0:00:11]} 45. Rb5+ {[%clk 0:00:06]}  Kc2 {[%clk 0:00:11]} 46. e6 {[%clk 0:00:05]}  a2 {[%clk 0:00:11]} 47. e7 {[%clk 0:00:05]}  Ra3+ {[%clk 0:00:11]} 48. Kf4 {[%clk 0:00:04]}  a1=Q {[%clk 0:00:12]} 49. e8=Q {[%clk 0:00:03]}  Qf1+ {[%clk 0:00:12]} 50. Kg5 {[%clk 0:00:03]}  Rg3+ {[%clk 0:00:12]} 51. Kh6 {[%clk 0:00:03]}  Qh3+ {[%clk 0:00:13]} 52. Qh5 {[%clk 0:00:04]}  Qe6+ {[%clk 0:00:12]} 53. Kh7 {[%clk 0:00:04]}  Qd7+ {[%clk 0:00:12]} 54. Kh6 {[%clk 0:00:04]}  Qg7# {[%clk 0:00:11]} 0-1


[Site "https://www.chess.com"]